bitfinex/quotes_ETHUSD_20250110
["timestamp","ask_amount","ask_price","bid_price","bid_amount"]
[1736507099384,3.00733,3325.2,3325.0,0.0075]
[1736507100523,3.00742,3325.1,3325.0,0.0075]
[1736507101862,0.78290616,3325.5,3325.0,0.0075]
[1736507102062,3.00726,3325.3,3325.0,0.0075]
[1736507103551,0.38031164,3325.6,3324.9,0.215]
[1736507103754,3.00751,3325.0,3324.9,0.215]
[1736507103953,3.00751,3325.0,3324.9,0.2225]
[1736507104688,3.00751,3325.0,3324.9,0.215]
[1736507104855,3.384491,3325.0,3324.9,0.215]
[1736507106481,3.00751,3325.0,3324.9,0.215]
[1736507107043,3.00743,3325.1,3324.9,0.215]
[1736507108278,3.00728,3325.3,3324.9,0.215]
[1736507109182,0.7639,3325.4,3325.0,0.0075]
[1736507109375,3.38031164,3325.6,3325.0,0.0075]
[1736507109767,3.00716,3325.4,3325.0,0.0075]
[1736507110398,4.9842501,3325.7,3324.9,0.215]
[1736507110745,3.0072,3325.4,3325.0,0.7646]
[1736507110869,3.0072,3325.4,3325.1,0.0075]
[1736507111074,4.39014,3325.7,3325.1,0.0075]
[1736507111075,3.007,3325.6,3325.1,0.0075]
[1736507111388,3.00708,3325.5,3325.1,0.0075]
[1736507112733,0.625,3325.7,3325.1,0.04507268]
[1736507113025,0.625,3325.7,3325.3,0.015]
[1736507118163,0.625,3325.7,3325.5,0.015]
[1736507119668,0.625,3325.7,3325.6,0.215]
[1736507120016,0.625,3325.7,3324.3,0.7722]
[1736507120275,3.00726,3325.3,3324.4,0.215]
[1736507120431,3.00735,3325.2,3324.5,0.015]
[1736507120637,3.00745,3325.1,3324.5,0.0075]
[1736507121168,0.8274,3325.3,3324.3,0.7722]
[1736507121169,3.00755,3325.0,3324.7,0.0075]
[1736507121380,3.83521,3324.7,3323.6,3.79646]
[1736507121673,3.83521,3324.7,3323.8,0.0075]
[1736507121832,0.8274,3324.7,3323.9,0.215]
[1736507122036,3.00825,3324.2,3323.6,0.7877]
[1736507122272,3.00825,3324.2,3323.8,0.0075]
[1736507122433,3.83565,3324.2,3323.8,0.0075]
[1736507122635,1.210965,3324.2,3323.8,0.0075]
[1736507122833,1.210965,3324.2,3323.9,0.215]
[1736507123080,6.00842,3324.0,3323.9,0.215]
[1736507125459,0.8063,3323.6,3323.0,0.7877]
[1736507125625,3.0,3323.5,3323.1,0.215]
[1736507125830,0.8063,3323.6,3323.2,0.215]
[1736507126152,3.00894,3323.5,3323.3,0.215]
[1736507126454,3.00894,3323.5,3323.4,0.215]
[1736507127677,3.81508,3323.6,3323.4,0.215]
[1736507129174,3.0076,3325.0,3323.5,0.8133]
[1736507129321,3.00771,3324.8,3323.7,0.8133]
[1736507129577,0.38207,3324.9,3323.9,0.015]
[1736507129782,3.00781,3324.7,3323.9,0.015]
[1736507130199,3.00781,3324.7,3323.8,0.015]
[1736507130432,3.00798,3324.5,3323.8,0.0075]
[1736507130633,5.21585369,3324.7,3323.8,0.0075]
[1736507130783,3.52158537,3324.6,3323.8,0.0075]
[1736507132133,3.52158537,3324.6,3324.0,0.0075]
[1736507132334,6.52947537,3324.6,3324.0,0.0075]
[1736507132515,6.52947537,3324.6,3324.1,0.08059448]
[1736507132721,6.52947537,3324.6,3324.0,0.0075]
[1736507132920,0.87374691,3324.5,3324.0,0.0075]
[1736507133320,3.88174691,3324.5,3324.0,0.0075]
[1736507133549,4.69754691,3324.5,3324.0,0.0075]
[1736507133842,3.0,3324.3,3324.1,0.29559448]
[1736507134000,3.0,3324.3,3324.2,0.215]
[1736507134340,3.76976869,3324.3,3323.8,0.0075]
[1736507134632,3.76976869,3324.3,3324.2,0.215]
[1736507134847,0.76976869,3324.3,3323.7,0.7983]
[1736507134988,3.00833,3324.1,3323.2,0.7748]
[1736507135199,3.00833,3324.1,3322.6,3.00962]
[1736507135200,5.995,3325.7,3323.8,0.7748]
[1736507135485,0.625,3325.7,3324.7,3.00772]
[1736507135789,0.625,3325.7,3325.0,0.0075]
[1736507136010,0.625,3325.7,3325.1,0.07946234]
[1736507136252,0.78404064,3325.7,3325.1,0.07946234]
[1736507136604,3.79095064,3325.7,3325.1,0.07946234]
[1736507136788,0.625,3325.7,3325.2,0.015]
[1736507137493,0.625,3325.7,3325.4,0.0075]
[1736507137897,0.625,3325.7,3325.5,0.07862727]
[1736507138203,0.625,3325.7,3324.9,0.7871]
[1736507138541,0.625,3325.7,3325.0,0.09379948]
[1736507139825,0.625,3325.7,3325.0,0.07879948]
[1736507140327,0.625,3325.7,3325.1,0.215]
[1736507140837,4.40841,3325.7,3325.2,0.08623059]
[1736507141052,4.40841,3325.7,3325.2,0.2225]
[1736507141251,3.0,3325.4,3325.3,0.07869614]
[1736507141454,0.600709,3325.4,3325.3,0.215]
[1736507141595,3.00715,3325.4,3325.3,0.215]
[1736507141795,3.78365,3325.4,3325.3,0.215]
[1736507144946,3.78365,3325.4,3325.3,1.41]
[1736507146171,3.78365,3325.4,3325.3,1.195]
[1736507146329,3.78365,3325.4,3325.3,1.41]
[1736507146698,5.299712,3325.4,3325.3,1.41]
[1736507146845,5.299712,3325.4,3325.3,1.195]
[1736507147042,8.299712,3325.4,3325.3,1.41]
[1736507149161,8.249712,3325.4,3325.3,1.41]
[1736507149639,8.249712,3325.4,3325.3,1.195]
[1736507149841,8.249712,3325.4,3325.3,1.41]
[1736507151254,8.799712,3325.4,3325.3,1.195]
[1736507151594,9.1646,3325.1,3324.6,0.215]
[1736507151895,9.1646,3325.1,3323.4,0.7853]
[1736507151896,6.00788,3324.6,3324.5,0.215]
[1736507152096,6.80248,3324.6,3324.5,0.215]
[1736507152395,6.00806,3324.4,3324.3,0.215]
[1736507152555,6.00815,3324.3,3324.2,0.215]
[1736507152756,3.00815,3324.3,3324.2,0.215]
[1736507152961,3.45416987,3324.3,3324.2,0.215]
[1736507153362,3.45416987,3324.3,3323.5,0.0075]
[1736507153556,3.45416987,3324.3,3323.6,0.215]
[1736507153557,3.00869,3323.7,3323.6,0.215]
[1736507153752,3.00878,3323.6,3323.1,0.7853]
[1736507154041,3.0,3323.7,3323.3,0.0075]
[1736507154462,0.7946,3324.0,3323.3,0.0075]
[1736507154668,3.00877,3323.7,3323.3,0.0075]
[1736507154852,6.00869,3323.8,3323.4,0.215]
[1736507155183,6.00869,3323.8,3323.5,0.215]
[1736507156956,0.7946,3324.0,3323.5,0.215]
[1736507157153,3.00878,3323.6,3323.5,0.215]
[1736507157776,3.0,3323.7,3323.5,0.215]
[1736507157981,0.7946,3324.0,3323.5,0.215]
[1736507158369,1.474884,3324.0,3323.5,0.215]
[1736507159240,0.581984,3324.0,3323.5,0.215]
[1736507159437,6.56601987,3324.3,3323.6,0.07610593]
[1736507159669,3.00871,3323.7,3323.5,0.215]
[1736507159877,6.56601987,3324.3,3323.6,0.07610593]
[1736507160041,3.00869,3323.7,3323.6,0.29110593]
[1736507160247,3.75869,3323.7,3323.6,0.215]
[1736507160459,4.134559,3323.7,3323.6,0.215]
[1736507160687,3.00905,3323.4,3322.9,2.86378122]
[1736507160841,3.00905,3323.4,3323.0,0.2225]
[1736507161046,3.00905,3323.4,3323.1,0.07627833]
[1736507163799,3.00906,3323.3,3323.2,0.215]
[1736507164163,3.00888,3323.5,3323.2,0.215]
[1736507164620,3.0,3323.9,3323.3,0.0075]
[1736507164774,0.7506,3324.1,3323.5,0.0075]
[1736507164975,3.00834,3324.1,3323.5,0.0075]
[1736507165274,3.00834,3324.1,3323.6,0.28297101]
[1736507165604,3.00844,3324.0,3323.6,0.215]
[1736507165772,3.00869,3323.7,3323.6,0.215]
[1736507166390,6.00869,3323.7,3323.6,0.215]
[1736507166591,3.00907,3323.3,3322.8,0.7975]
[1736507166931,3.00907,3323.3,3322.9,0.2907124]
[1736507167061,3.0091,3323.3,3322.9,0.2907124]
[1736507168119,0.7605,3323.8,3322.9,0.2907124]
[1736507168310,3.00889,3323.5,3322.9,0.2907124]
[1736507169090,3.00899,3323.4,3322.9,0.0757124]
[1736507169291,3.00906,3323.3,3323.0,0.215]
[1736507169631,6.79983,3323.1,3323.0,0.06817791]
[1736507170040,3.00942,3322.9,3322.8,0.215]
[1736507171726,6.04131369,3322.9,3322.8,0.215]
[1736507172023,6.00951,3322.8,3322.0,0.7864]
[1736507172182,3.00978,3322.5,3322.1,0.216]
[1736507172387,3.00978,3322.5,3322.1,0.28031123]
[1736507172388,3.01005,3322.2,3322.1,0.28031123]
[1736507175745,3.00983,3322.5,3322.1,0.28031123]
[1736507175944,0.8239,3322.9,3322.2,0.7734]
[1736507176272,3.00934,3323.0,3322.2,0.86585702]
[1736507176407,3.00934,3323.0,3322.2,0.86585426]
[1736507176607,3.00942,3322.9,3322.2,0.83575673]
[1736507177134,8.37926,3323.1,3322.3,0.03759762]
[1736507177448,3.0,3323.0,3322.3,0.06982222]
[1736507177606,6.00936,3323.0,3322.3,0.06982222]
[1736507177802,0.8268,3323.4,3322.5,0.7918]
[1736507178046,3.0,3323.0,3322.5,0.7918]
[1736507178364,3.00927,3323.1,3322.6,0.06221872]
[1736507178365,3.0096,3322.7,3322.6,0.06221872]
[1736507178591,3.00987,3322.5,3322.2,0.7918]
[1736507179160,3.00987,3322.5,3322.3,0.0075]
[1736507179338,3.00996,3322.3,3322.1,0.216]
[1736507180135,3.00981,3322.5,3322.2,0.0075]
[1736507180491,3.00962,3322.7,3322.2,0.0075]
[1736507180664,5.37,3323.0,3322.4,0.015]
[1736507180864,3.00941,3322.9,3322.4,0.0075]
[1736507181066,5.37,3323.0,3322.4,0.0075]
[1736507181271,3.00953,3322.8,3322.4,0.0075]
[1736507181691,3.00961,3322.7,3322.4,0.0075]
[1736507181892,3.00978,3322.5,3322.1,0.216]
[1736507182597,3.00978,3322.5,3322.2,0.0075]
[1736507183394,3.01005,3322.3,3322.0,0.7643]
[1736507183551,3.01005,3322.3,3322.1,0.216]
[1736507184792,0.801,3322.8,3322.1,0.216]
[1736507184950,3.0096,3322.8,3322.2,0.0075]
[1736507185361,8.37934,3323.0,3322.2,0.015]
[1736507185571,8.37934,3323.0,3322.4,0.0075]
[1736507187026,8.37934,3323.0,3322.6,0.0075]
[1736507187389,8.37934,3323.0,3322.7,0.05116463]
[1736507187720,5.37,3323.0,3322.7,0.05116463]
[1736507188107,5.37,3323.0,3322.6,0.0075]
[1736507188310,8.37934,3323.0,3322.6,0.0075]
[1736507188486,3.00941,3322.9,3322.8,0.05113013]
[1736507188676,3.00941,3322.9,3322.6,0.0075]
[1736507189309,3.00941,3322.9,3322.7,0.05116463]
[1736507189808,3.00954,3322.8,3322.4,0.0075]
[1736507190216,3.00954,3322.8,3322.6,0.0075]
[1736507191012,3.00936,3323.0,3322.4,0.0075]
[1736507191511,3.00914,3323.2,3322.6,0.0075]
[1736507191713,3.00943,3322.9,3322.6,0.0075]
[1736507191911,2.20799369,3323.2,3322.7,0.05109879]
[1736507192117,3.00954,3322.8,3322.7,0.05109879]
[1736507192289,3.00954,3322.8,3322.4,0.0075]
[1736507192713,5.21713369,3323.2,3322.5,0.04928079]
[1736507193009,5.21713369,3323.2,3322.6,0.216]
[1736507193010,3.0096,3322.7,3322.6,0.216]
[1736507194183,0.7605,3322.8,3321.6,0.7983]
[1736507194511,3.01001,3322.3,3321.7,0.216]
[1736507195209,3.01001,3322.3,3321.7,0.015]
[1736507195415,3.01001,3322.3,3321.9,0.0075]
[1736507196316,3.00979,3322.5,3321.9,0.0075]
[1736507196614,3.00979,3322.5,3322.0,0.7983]
[1736507196983,0.7605,3322.8,3322.1,0.0075]
[1736507196984,3.00961,3322.7,3322.1,0.0075]
[1736507198087,5.37,3323.0,3322.1,0.0075]
[1736507198088,5.20799369,3322.9,3322.1,0.0075]
[1736507198289,3.00973,3322.6,3322.1,0.0075]
[1736507198475,3.00985,3322.5,3322.1,0.0075]
[1736507198681,3.01004,3322.3,3322.0,0.7983]
[1736507198881,3.01004,3322.3,3321.8,0.216]
[1736507199179,3.01004,3322.3,3321.9,0.0075]
[1736507199375,3.76147,3322.7,3322.0,0.216]
[1736507199579,3.00994,3322.4,3322.0,0.216]
[1736507200383,3.01001,3322.3,3322.0,0.216]
[1736507200778,3.0,3322.6,3322.0,0.216]
[1736507200978,3.00978,3322.5,3322.0,0.216]
[1736507201419,3.01014,3322.1,3322.0,0.216]
[1736507201581,3.00978,3322.5,3321.5,4.2245]
[1736507201582,3.0,3322.4,3321.5,0.0075]
[1736507201783,3.0,3322.4,3321.4,0.7855]
[1736507201784,3.01032,3321.9,3321.4,0.7855]
[1736507202095,3.01032,3321.9,3321.6,0.04657719]
[1736507202294,3.01032,3321.9,3321.6,0.0075]
[1736507202497,3.01032,3321.9,3321.7,0.04654267]
[1736507202815,3.01032,3321.9,3321.6,0.0075]
[1736507203021,3.01032,3321.9,3321.8,0.04650815]
[1736507203224,3.01032,3321.9,3321.5,0.216]
[1736507203407,3.01032,3321.9,3321.8,0.04650815]
[1736507203609,3.01032,3321.9,3321.5,0.216]
[1736507203780,3.01042,3321.8,3321.5,0.216]
[1736507204773,3.0,3322.2,3321.5,0.216]
[1736507204909,0.68725937,3322.1,3321.5,0.216]
[1736507205316,3.01033,3321.9,3321.5,0.216]
[1736507205515,3.01021,3322.1,3321.5,0.216]
[1736507206793,1.6646,3322.3,3321.5,0.216]
[1736507207019,3.01041,3321.9,3321.5,0.216]
[1736507207387,4.67461,3322.3,3321.1,0.7983]
[1736507207388,3.01059,3321.6,3321.1,0.7983]
[1736507207700,3.01043,3321.8,3321.3,0.0075]
[1736507208209,3.01043,3321.8,3321.4,0.04708232]
[1736507208417,3.01057,3321.7,3321.3,0.0075]
[1736507208622,3.01057,3321.7,3321.5,0.0470478]
[1736507208826,3.01077,3321.5,3321.2,0.216]
[1736507209211,3.01077,3321.5,3320.8,0.7983]
[1736507209410,3.0108,3321.4,3320.9,0.2235]
[1736507209808,3.0108,3321.4,3321.1,0.0075]
[1736507210027,3.0107,3321.5,3321.1,0.0075]
[1736507210235,3.0107,3321.5,3321.2,0.04715137]
[1736507210552,3.01014,3322.1,3321.5,0.0075]
[1736507210697,6.01014,3322.1,3321.5,0.0075]
[1736507210901,6.01014,3322.1,3321.6,0.04701328]
[1736507211408,3.0,3322.1,3321.7,0.0075]
[1736507211638,0.8267,3322.7,3321.9,0.0075]
[1736507211846,0.8267,3323.0,3321.9,0.0075]
[1736507211998,3.0097,3322.6,3322.0,0.04687522]
[1736507212197,3.0,3322.9,3322.0,0.04687522]
[1736507212402,3.0098,3322.5,3322.0,0.04687522]
[1736507213536,3.0098,3322.5,3322.1,0.0075]
[1736507213699,3.00962,3322.7,3322.1,0.05434072]
[1736507213899,3.00969,3322.6,3322.1,0.0075]
[1736507214099,3.00969,3322.6,3322.1,0.04684072]
[1736507214299,3.00969,3322.6,3322.1,0.0075]
[1736507214556,3.0,3322.9,3322.1,0.04684072]
[1736507214772,3.00996,3322.3,3321.8,0.9666]
[1736507214900,3.00996,3322.3,3322.1,0.04684072]
[1736507215102,3.00996,3322.3,3321.9,0.0075]
[1736507215331,3.00996,3322.3,3322.0,0.04687522]
[1736507215702,3.00996,3322.3,3321.9,0.0075]
[1736507215954,3.387176,3322.3,3321.9,0.0075]
[1736507216115,0.377216,3322.3,3321.5,0.7961]
[1736507216298,0.377216,3322.3,3321.6,0.216]
[1736507216503,3.01027,3322.0,3321.7,0.0468709]
[1736507216747,3.01034,3321.9,3321.6,0.216]
[1736507217060,3.01043,3321.8,3321.6,0.216]
[1736507217623,3.01043,3321.8,3321.4,0.0075]
[1736507217822,3.01043,3321.8,3321.3,0.7961]
[1736507217823,3.01043,3321.8,3321.7,0.216]
[1736507218244,3.0,3321.9,3321.7,0.216]
[1736507219759,3.601026,3321.9,3321.7,0.216]
[1736507219969,3.611386,3321.9,3321.7,0.216]
[1736507220319,3.0,3321.9,3321.7,0.216]
[1736507220942,3.0,3321.9,3321.8,0.215]
[1736507228969,5.37,3322.2,3321.9,0.7832]
[1736507229406,5.37,3322.2,3322.0,0.05452531]
[1736507229712,3.0,3322.5,3322.0,0.05452531]
[1736507230007,3.0,3322.7,3322.0,0.0075]
[1736507230224,3.00966,3322.7,3322.2,0.0075]
[1736507231091,3.00966,3322.7,3322.0,0.0075]
[1736507231302,3.0,3322.5,3322.0,0.0075]
[1736507231499,3.00985,3322.5,3322.1,0.0469908]
[1736507231811,3.00988,3322.4,3322.1,0.0469908]
[1736507232021,3.00988,3322.4,3321.9,0.7832]
[1736507232313,3.00988,3322.4,3322.2,0.04695629]
[1736507232625,3.00988,3322.4,3321.9,0.7832]
[1736507233113,3.00997,3322.3,3322.0,0.04702531]
[1736507234129,3.00997,3322.3,3321.6,0.7983]
[1736507234130,3.01022,3322.1,3321.6,0.7983]
[1736507234418,0.377287,3322.3,3321.6,0.7983]
[1736507234419,6.01005,3322.2,3322.1,0.215]
[1736507236427,6.01005,3322.2,3321.1,0.03010578]
[1736507236428,0.8298,3322.0,3321.3,0.7983]
[1736507236634,3.01052,3321.7,3321.4,0.215]
[1736507237834,3.0,3321.8,3321.4,0.215]
[1736507238237,3.0,3321.8,3321.5,0.04725886]
[1736507240908,3.01043,3321.8,3321.5,0.04725886]
[1736507241222,3.01043,3321.8,3321.4,0.215]
[1736507241634,3.01043,3321.8,3321.5,0.04725888]
[1736507242142,3.01043,3321.8,3321.6,0.215]
[1736507242439,0.301043,3321.8,3321.2,0.0075]
[1736507242641,0.7692,3321.8,3321.7,0.04720861]
[1736507242954,3.0,3321.4,3321.3,0.215]
[1736507243253,3.0,3321.4,3320.9,0.0075]
[1736507243553,3.0,3321.4,3321.3,0.262342]
[1736507243729,3.0,3321.4,3321.3,0.215]
[1736507245921,6.01084,3321.4,3321.3,0.215]
[1736507246133,3.0,3321.5,3321.3,0.215]
[1736507246721,6.01073,3321.5,3321.3,0.215]
[1736507247363,3.0,3321.5,3321.3,0.215]
[1736507247569,3.01077,3321.4,3321.3,0.215]
[1736507253774,3.01105,3321.1,3320.8,0.7983]
[1736507253969,3.01105,3321.1,3320.9,0.215]
[1736507254314,3.01131,3320.9,3320.5,1.08542731]
[1736507254519,3.01131,3320.9,3320.6,0.215]
[1736507255468,3.0,3321.0,3320.6,0.215]
[1736507255884,3.01116,3321.0,3320.6,0.215]
[1736507256762,3.01131,3320.9,3320.6,0.0075]
[1736507256961,3.01131,3320.9,3320.4,1.25]
[1736507256962,3.01159,3320.5,3320.4,1.25]
[1736507257200,3.0,3320.8,3320.4,1.465]
[1736507257201,3.01145,3320.7,3320.4,1.465]
[1736507258208,8.38111,3321.1,3320.4,1.465]
[1736507258209,3.01154,3320.6,3320.4,1.465]
[1736507258401,3.0,3320.9,3320.5,0.215]
[1736507258606,3.0115,3320.6,3320.5,0.215]
[1736507258806,3.01159,3320.5,3320.4,1.25]
[1736507259089,3.01159,3320.5,3320.4,1.465]
[1736507259422,3.01144,3320.7,3320.4,1.51284044]
[1736507259623,3.0115,3320.6,3320.4,1.51284044]
[1736507259826,0.7869,3320.9,3320.4,1.51284044]
[1736507259989,3.01159,3320.5,3320.4,1.51284044]
[1736507260191,6.01159,3320.5,3320.4,1.465]
[1736507260591,6.76579,3320.5,3320.4,1.465]
[1736507261215,6.76579,3320.5,3320.4,1.25]
[1736507261417,6.76579,3320.5,3320.4,1.465]
[1736507264496,7.66316837,3320.5,3320.4,1.465]
[1736507265245,7.66316837,3320.5,3320.4,1.25]
[1736507265246,8.21316837,3320.5,3320.4,1.25]
[1736507265546,6.01195,3320.1,3320.0,0.215]
[1736507266808,0.7811,3320.0,3319.4,0.7979]
[1736507267035,3.01224,3319.8,3319.5,0.215]
[1736507268059,3.79317,3320.0,3319.5,0.215]
[1736507268356,3.01214,3319.9,3319.5,0.215]
[1736507268525,3.01214,3319.9,3319.6,0.215]
[1736507268950,3.0,3319.8,3319.6,0.215]
[1736507269247,3.0,3319.8,3319.7,0.215]
[1736507270203,3.0,3319.8,3319.5,0.0075]
[1736507270408,3.0,3319.8,3319.6,0.215]
[1736507271209,3.0,3319.8,3319.5,0.0075]
[1736507271437,3.0,3319.8,3319.6,0.215]
[1736507272423,3.01205,3320.0,3319.6,0.215]
[1736507272949,3.0,3319.8,3319.7,0.04791371]
[1736507273324,3.0,3319.8,3319.6,0.215]
[1736507276257,5.37,3320.3,3319.9,0.0075]
[1736507276754,3.0,3320.2,3320.1,0.0075]
[1736507277133,3.0,3320.2,3320.1,0.05543983]
[1736507277615,5.37,3320.3,3320.1,0.05543983]
[1736507278068,5.37,3320.3,3319.9,0.0075]
[1736507278266,5.37,3320.3,3320.2,0.04790528]
[1736507278482,3.0,3320.5,3319.9,0.0075]
[1736507278760,3.0,3320.5,3320.2,0.0075]
[1736507278928,8.38134,3320.8,3320.2,0.0075]
[1736507279129,8.38134,3320.8,3320.4,0.0075]
[1736507279335,3.0,3320.7,3320.4,0.0075]
[1736507279559,3.0,3320.7,3320.5,0.04769836]
[1736507280203,3.0,3320.7,3320.1,0.78]
[1736507280399,3.0117,3320.4,3320.0,0.215]
[1736507280560,3.0,3320.3,3320.0,0.215]
[1736507280760,0.7767,3320.6,3320.1,0.0075]
[1736507281673,3.01161,3320.5,3320.1,0.0075]
[1736507281880,3.8042544,3320.5,3320.1,0.0075]
[1736507282166,0.7926444,3320.5,3320.1,0.0075]
[1736507282501,6.01144,3320.7,3320.1,0.0075]
[1736507282700,3.0,3320.7,3320.1,0.0075]
[1736507283013,5.37,3320.8,3320.3,0.015]
[1736507283217,3.0,3320.7,3320.3,0.015]
[1736507283417,3.0,3320.7,3320.5,0.0075]
[1736507283975,3.0,3320.7,3320.6,0.05520138]
[1736507284408,3.0,3320.9,3320.6,0.05520138]
[1736507284719,3.8004,3321.1,3320.6,0.05520138]
[1736507285023,3.8004,3321.1,3320.7,0.0075]
[1736507285204,6.1345,3321.7,3320.8,0.0075]
[1736507285405,5.37,3321.7,3321.0,0.015]
[1736507285728,0.7645,3322.4,3321.4,0.015]
[1736507286221,3.0,3322.3,3321.4,0.0075]
[1736507286428,0.59724937,3322.2,3321.4,0.0075]
[1736507286635,0.7883,3322.0,3320.9,0.7983]
[1736507286777,3.7883,3322.0,3321.5,0.26220283]
[1736507286976,3.7883,3322.0,3321.5,0.215]
[1736507287190,3.7883,3322.0,3321.0,0.0075]
[1736507287431,3.7883,3322.0,3321.2,0.0075]
[1736507287648,0.59962937,3321.9,3321.2,0.0075]
[1736507289078,0.7667,3321.6,3321.1,0.215]
[1736507290625,0.7667,3321.6,3321.2,0.215]
[1736507292407,10.57799369,3321.5,3321.2,0.215]
[1736507292689,0.7786,3321.3,3321.1,0.215]
[1736507292891,5.20799369,3321.2,3320.9,0.215]
[1736507293114,5.20799369,3321.2,3321.0,0.215]
[1736507294922,3.0,3320.7,3319.0,0.7983]
[1736507295133,5.20799369,3320.7,3319.3,0.7983]
[1736507295360,1.13514937,3320.6,3319.4,0.0075]
[1736507295547,1.13514937,3320.6,3319.8,0.015]
[1736507295967,1.13514937,3320.6,3320.0,0.0075]
[1736507296163,1.13514937,3320.6,3320.1,0.215]
[1736507296736,3.0,3320.7,3320.1,0.215]
[1736507297758,3.0,3320.7,3320.2,0.215]
[1736507300133,3.0,3320.7,3320.3,0.215]
[1736507304282,3.0,3320.7,3320.4,1.25]
[1736507308513,8.37,3320.7,3320.4,1.25]
[1736507308684,8.73396166,3320.7,3320.4,1.25]
[1736507313201,11.74539166,3320.7,3320.4,1.25]
[1736507315892,3.0,3320.5,3320.4,1.25]
[1736507318820,3.01159,3320.5,3320.4,1.25]
[1736507320389,11.38159,3320.5,3320.4,1.25]
[1736507320588,12.63461517,3320.5,3320.4,1.25]
[1736507322446,13.18461517,3320.5,3320.4,0.49777511]
[1736507322657,14.01461517,3320.5,3320.4,0.40728162]
[1736507324545,15.01461517,3320.5,3320.4,0.40728162]
[1736507328943,3.01195,3320.1,3320.0,0.218]
[1736507329142,6.313145,3320.1,3320.0,0.218]
[1736507332347,11.683145,3320.1,3320.0,0.218]
[1736507333598,12.505545,3320.1,3320.0,0.218]
[1736507334999,5.37,3319.9,3319.8,0.218]
[1736507335199,12.12854819,3319.9,3319.8,0.218]
[1736507335459,12.12854819,3319.9,3319.1,0.0075]
[1736507335460,3.0,3319.4,3319.1,0.7983]
[1736507335757,3.0,3319.4,3319.2,0.218]
[1736507335902,6.01268,3319.3,3318.3,1.40626986]
[1736507336097,6.1924,3319.5,3318.4,0.218]
[1736507336098,6.01278,3319.2,3318.4,0.218]
[1736507336866,3.0,3319.0,3318.5,0.015]
[1736507337010,3.0,3319.0,3318.5,0.233]
[1736507337367,3.0,3319.0,3318.7,0.0075]
[1736507341012,3.15212083,3319.4,3318.7,0.0075]
[1736507341218,8.37,3319.2,3318.7,0.0075]
[1736507341438,8.37,3319.2,3318.7,0.015]
[1736507341650,8.37,3319.2,3318.9,0.0075]
[1736507342029,8.37,3319.2,3318.9,0.015]
[1736507342236,5.37,3319.8,3319.2,0.015]
[1736507342451,5.37,3319.8,3319.5,0.7983]
[1736507342669,5.37,3320.3,3319.6,0.233]
[1736507342969,3.0,3320.2,3319.6,0.27966181]
[1736507343264,5.20799369,3320.2,3319.7,0.218]
[1736507343417,5.20799369,3320.2,3319.8,0.0075]
[1736507343418,8.21988369,3320.2,3319.8,0.0075]
[1736507343618,6.01189,3320.2,3319.8,0.0075]
[1736507343865,3.0,3320.2,3319.8,0.0075]
[1736507344018,3.0,3320.2,3319.9,0.218]
[1736507344226,3.0,3320.2,3320.1,0.8058]
[1736507344426,6.37,3320.4,3320.2,0.0075]
[1736507344666,1.0,3320.4,3320.3,0.2255]
[1736507345625,1.0,3320.4,3320.3,0.233]
[1736507345982,1.0,3320.4,3320.3,0.9986]
[1736507346124,1.0,3320.4,3320.3,0.7806]
[1736507346325,1.0,3320.4,3320.3,1.04378041]
[1736507347824,1.0,3320.4,3320.3,0.7731]
[1736507348066,1.0,3320.4,3320.3,0.217]
[1736507348876,1.0,3320.4,3320.3,0.232]
[1736507349534,1.0,3320.4,3320.3,1.015]
[1736507349733,1.0,3320.4,3320.3,1.06833768]
[1736507349985,1.0,3320.4,3320.3,4.1102204]
[1736507350283,1.0,3320.4,3320.3,0.04583768]
[1736507350580,1.0,3320.4,3320.3,0.217]
[1736507350761,1.7555,3320.4,3320.3,0.217]
[1736507350960,10.85168383,3320.4,3320.3,0.217]
[1736507351144,10.02885852,3320.4,3320.3,0.217]
[1736507352039,9.15234838,3320.4,3320.3,0.217]
[1736507352239,4.0,3320.4,3320.3,0.217]
[1736507352554,4.01168,3320.4,3320.3,0.217]
[1736507352760,3.01168,3320.4,3320.3,0.217]
[1736507353177,3.95152348,3320.4,3320.3,0.217]
[1736507354239,3.95152348,3320.4,3319.7,0.015]
[1736507354576,4.34667583,3320.4,3320.3,0.217]
[1736507354777,3.40683235,3320.4,3320.3,0.217]
[1736507354949,3.76699,3320.7,3320.3,0.217]
[1736507355135,3.0115,3320.6,3320.3,0.217]
[1736507356114,3.0,3320.5,3320.3,0.217]
[1736507356282,8.37,3320.5,3320.3,0.217]
[1736507357311,5.37,3320.5,3320.4,0.0075]
[1736507357456,5.37,3320.5,3320.4,0.81610294]
[1736507358468,5.37,3320.5,3320.4,0.7724]
[1736507358897,8.37,3320.5,3320.4,0.7724]
[1736507360786,3.0,3320.4,3320.3,0.217]
[1736507360983,6.01168,3320.4,3320.3,0.217]
[1736507361206,3.0,3320.4,3320.3,0.217]
[1736507363037,5.37,3320.5,3320.4,0.0075]